[Event "Israel Team Championship 2025"]
[Site "Israel"]
[Date "2025.01.17"]
[Round "3.27"]
[White "Yaniv, Yuval"]
[Black "Rozen, Eytan"]
[Result "1-0"]
[Annotator "TA"]
[ECO "B12"]
[WhiteElo "2410"]
[BlackElo "2504"]
[PlyCount "143"]
[EventDate "2025.01.07"]
[EventType "team-tourn"]
[EventCountry "ISR"]
[SourceTitle "playchess.com"]
[Source "ChessBase"]
[SourceQuality "1"]
[TimeControl "40/5400+30:1800+30"]

{[%evp 10,143,20,-25,-21,-26,-34,-45,-32,-34,35,33,38,21,26,37,32,21,47,35,23,30,42,26,40,20,27,15,109,125,111,116,112,125,114,91,91,75,141,141,188,111,111,50,48,69,116,56,120,61,76,64,61,57,78,69,75,93,79,64,76,48,61,43,78,78,157,162,160,174,219,204,200,192,201,218,224,207,228,213,262,244,236,231,495,492,575,562,533,454,625,627,713,638,865,719,875,875,840,828,803,742,4901,3078,29969,29969,29969,29968,29970,29972,29972,29973,29976,29977,29978,29976,29978,29979,29979,29980,29980,29981,29981,29982,29982,29983,29983,29984,29984,29985,29985,29986,29986,29987,29986,29987]} 1. e4 {[%emt 0:00:10]} c6 {[%emt 0:04:05]} 2. d4 {[%emt 0:00:43]} d5 {[%emt 0:00:05]} 3. e5 {[%emt 0:00:22]} Bf5 {[%emt 0:00:49]} 4. c4 {[%emt 0:00:21]} e6 {[%emt 0:00:04]} 5. Nc3 {[%emt 0:00:11]} Ne7 {[%emt 0:02:58]} 6. Nge2 {[%emt 0:00:26]} dxc4 {[%emt 0:01:51][%cal Oc6c5]} 7. Ng3 {[%emt 0:00:27]} b5 {[%emt 0:00:03]} 8. Be2 {[%emt 0:00:14]} Na6 {[%emt 0:02:08][%cal Bb8a6,Ba6c7,Bc7d5][%mdl 32]} 9. O-O {[%emt 0:00:18]} Qd7 {[%emt 0:10:37]} (9... Nb4 $15) 10. b3 $14 {[%emt 0:13:09]} cxb3 {[%emt 0:03:50]} 11. Qxb3 {[%emt 0:01:33][%cal Rc3b5]} Nc7 $1 {[%emt 0:00:51]} 12. a4 {[%emt 0:03:25]} b4 {[%emt 0:00:05]} 13. Qxb4 {[%emt 0:05:05]} Ned5 {[%emt 0:00:20]} 14. Qb3 {[%emt 0:04:04]} Nxc3 {[%emt 0:04:09]} 15. Qxc3 {[%emt 0:00:11]} Nd5 {[%emt 0:00:52]} 16. Qf3 {[%emt 0:05:05]} Bg6 {[%emt 0:00:55]} 17. h4 {[%emt 0:04:54]} h5 {[%emt 0:00:19]} 18. Bd3 {[%emt 0:06:27]} Be7 {[%emt 0:04:03]} (18... Bxd3 $11 19. Qxd3 c5) 19. Bxg6 $16 {[%emt 0:03:26]} fxg6 {[%emt 0:00:02]} 20. Ne4 {[%emt 0:00:12]} Rf8 {[%emt 0:00:37]} 21. Qg3 {[%emt 0:01:20] White is more active.} Kf7 {[%emt 0:00:03]} 22. Ba3 {[%emt 0:04:50]} Kg8 {[%emt 0:03:41]} 23. Rfe1 {[%emt 0:03:34]} (23. Qxg6 $2 Nf4 24. Nf6+ Rxf6 $19) 23... Kh7 {[%emt 0:06:46]} (23... Bxa3 $142 24. Qxa3 (24. Rxa3 Ne7 $16) 24... Rab8) 24. Bxe7 {[%emt 0:05:03]} Qxe7 {[%emt 0:01:40]} (24... Nxe7 $16 {might work better.} 25. Qb3 Kh8) 25. Qg5 {[%emt 0:01:08]} (25. Rac1 $18) 25... Qb4 {[%emt 0:12:31]} 26. Qd2 {[%emt 0:01:22]} (26. Red1 $16) 26... Qxd2 $14 {[%emt 0:09:10]} 27. Nxd2 {[%emt 0:00:07]} Nb4 {[%emt 0:01:04]} (27... g5 $14) 28. Re4 {[%emt 0:04:25]} (28. Rec1 $16) 28... Kg8 {[%emt 0:03:09]} (28... g5 $1 $14) 29. Ra3 {[%emt 0:02:50]} ({Better is} 29. Nf3 $16) 29... Nd5 {[%emt 0:01:53]} 30. Re1 {[%emt 0:05:51]} Rab8 {[%emt 0:02:26]} 31. Rc1 {[%emt 0:02:17]} Nf4 {[%emt 0:06:40]} 32. Rxc6 {[%emt 0:16:43]} Ne2+ {[%emt 0:00:31]} 33. Kf1 {[%emt 0:00:25]} Nxd4 {[%emt 0:00:32]} 34. Rc4 {[%emt 0:00:22]} Nf5 $1 {[%emt 0:03:08]} 35. Rd3 {[%emt 0:00:27]} Rb2 {[%emt 0:01:38][%cal Ob2d2] ...Rxd2! would now be deadly.} 36. Nf3 $36 {[%emt 0:01:25][%mdl 2048] Black is under pressure.} Ne7 {[%emt 0:02:20]} 37. Rd2 {[%emt 0:02:25]} Rb1+ {[%emt 0:04:13]} ({Black should play} 37... Rxd2 38. Nxd2 Rc8) 38. Ke2 $16 {[%emt 0:00:07]} Nd5 {[%emt 0:00:40]} 39. g3 $1 {[%emt 0:00:35] Repels Nf4+} Rf5 {[%emt 0:05:28] [#]} 40. Rc8+ $1 {[%emt 0:02:29]} Rf8 {[%emt 0:02:50]} 41. Rdc2 {[%emt 0:03:09]} Ne7 {[%emt 0:04:52]} 42. Rxf8+ {[%emt 0:04:38]} Kxf8 $18 {[%emt 0:27:32][%mdl 4096] Endgame [#] KRN-KRN} 43. Rc7 $1 {[%emt 0:01:17]} a5 {[%emt 0:00:00]} 44. Rc5 {[%emt 0:02:46]} Rb4 {[%emt 0:00:00]} 45. Rxa5 {[%emt 0:00:50]} Nc6 {[%emt 0:00:00]} 46. Rc5 {[%emt 0:06:47]} Nd4+ $2 {[%emt 0:00:00]} (46... Nd8 47. a5 Ke8) 47. Nxd4 {[%emt 0:00:06]} Rxd4 {[%emt 0:00:00] KR-KR. White is a pawn up.} 48. a5 {[%emt 0:01:13]} Ra4 {[%emt 0:00:00]} 49. Kd3 {[%emt 0:01:36]} g5 {[%emt 0:00:00]} 50. hxg5 {[%emt 0:00:29]} Kf7 {[%emt 0:00:00]} 51. Kc3 {[%emt 0:02:00]} Ra2 {[%emt 0:00:00]} 52. Kb3 {[%emt 0:02:59]} Rxf2 {[%emt 0:00:00]} 53. a6 {[%emt 0:00:43] a7 would kill now.} Kg6 {[%emt 0:00:00]} 54. a7 {[%emt 0:00:24]} Rf8 {[%emt 0:00:00]} 55. Rc7 {[%emt 0:00:51] Black must now prevent Rb7.} Ra8 {[%emt 0:00:00]} 56. Kc4 {[%emt 0:00:41]} Kxg5 {[%emt 0:00:00]} 57. Rxg7+ {[%emt 0:01:15]} Kf5 {[%emt 0:00:00]} 58. Kd4 {[%emt 0:03:06]} Rc8 {[%emt 0:00:00]} 59. Rb7 {[%emt 0:00:42]} Ra8 {[%emt 0:00:00]} 60. Kc5 {[%emt 0:02:52]} Kxe5 {[%emt 0:00:00]} 61. Kb6 {[%emt 0:00:03]} Ke4 {[%emt 0:00:00]} 62. Rh7 {[%emt 0:00:27]} Kf3 {[%emt 0:00:00]} 63. Rxh5 {[%emt 0:00:20]} Kxg3 {[%emt 0:00:00]} 64. Kb7 {[%emt 0:00:45]} Re8 {[%emt 0:00:00]} 65. a8=Q {[%emt 0:01:14]} ({Worse is} 65. a8=B e5 $11) 65... Rxa8 {[%emt 0:00:00]} 66. Kxa8 {[%emt 0:00:04] KR-KP} Kf4 {[%emt 0:00:00]} 67. Kb7 {[%emt 0:00:08]} e5 {[%emt 0:00:00][%cal Be6e5,Be5e4,Be4e3,Be3e2][%mdl 32]} 68. Kc6 {[%emt 0:00:21]} e4 {[%emt 0:00:00]} 69. Kd5 {[%emt 0:00:38]} e3 {[%emt 0:00:00]} 70. Kd4 {[%emt 0:00:22]} e2 {[%emt 0:00:00]} 71. Re5 {[%emt 0:00:16]} Kf3 {[%emt 0:00:00]} 72. Kd3 {[%emt 0:00:04]} 1-0

[Event "Israel Team Championship 2025"]
[Site "Israel"]
[Date "2025.01.17"]
[Round "3.28"]
[White "Erenberg, Ariel"]
[Black "Guz, Ari"]
[Result "1-0"]
[Annotator "TA"]
[ECO "C11"]
[WhiteElo "2512"]
[BlackElo "2336"]
[PlyCount "91"]
[EventDate "2025.01.07"]
[EventType "team-tourn"]
[EventCountry "ISR"]
[SourceTitle "playchess.com"]
[Source "ChessBase"]
[SourceQuality "1"]
[TimeControl "40/5400+30:1800+30"]

{[%evp 20,91,18,0,0,14,30,0,0,0,0,0,0,-13,0,0,-16,-55,-56,-71,-52,-82,-52,-114,-36,-45,-28,-14,-36,-22,-20,-23,0,0,25,0,0,0,0,-28,0,-126,-150,-179,-171,-178,-165,-221,-218,-234,0,3,10,14,16,14,8,16,82,78,93,49,62,50,84,62,189,190,293,282,351,329,841,841]} 1. e4 {[%emt 0:03:06]} e6 {[%emt 0:00:16]} 2. d4 {[%emt 0:00:06]} d5 {[%emt 0:00:09]} 3. Nc3 {[%emt 0:00:04]} Nf6 {[%emt 0:00:14]} 4. e5 {[%emt 0:00:10]} Nfd7 {[%emt 0:00:12]} 5. f4 {[%emt 0:00:06]} c5 {[%emt 0:00:47]} 6. Nf3 {[%emt 0:00:06]} Nc6 {[%emt 0:00:15]} 7. Be3 {[%emt 0:00:08]} cxd4 {[%emt 0:00:17]} 8. Nxd4 {[%emt 0:00:06]} Qb6 {[%emt 0:00:34]} 9. Qd2 {[%emt 0:00:33]} Qxb2 {[%emt 0:00:53]} 10. Rb1 {[%emt 0:00:05]} Qa3 {[%emt 0:00:08]} 11. Bb5 $1 {[%emt 0:00:21]} Nxd4 {[%emt 0:00:17]} 12. Bxd4 {[%emt 0:00:05][%cal Of4f5] Black should prevent f5!} a6 {[%emt 0:00:10]} 13. Rb3 {[%emt 0:00:23][%mdl 1024] White has compensation.} Qe7 {[%emt 0:03:57] The position is equal.} 14. Ba4 {[%emt 0:00:57]} Qd8 {[%emt 0:31:26] [#] Hoping for ...b5.} 15. Bb6 {[%emt 0:07:22]} Qh4+ {[%emt 0:00:59]} 16. g3 {[%emt 0:00:27]} Qh3 {[%emt 0:01:39] ...Be7 is the strong threat.} 17. Ne4 {[%emt 0:10:09]} Be7 {[%emt 0:05:33]} 18. Nd6+ {[%emt 0:01:17]} (18. Nc5 {simplifies} Bxc5 19. Bxd7+ Bxd7 20. Bxc5 Bc6 21. Kd1) 18... Bxd6 {[%emt 0:01:00]} 19. exd6 {[%emt 0:00:02][%cal Og3g4]} O-O {[%emt 0:00:46]} 20. Rf1 {[%emt 0:12:06]} Nf6 {[%emt 0:03:15]} 21. Qe2 {[%emt 0:08:23]} (21. g4 $15 Qxg4 22. Rg3) 21... h5 {[%emt 0:08:47]} (21... Bd7 $17 22. g4 Qh4+ (22... Qxg4 $2 23. Qxg4 Nxg4 24. Bxd7 $18) 23. Bf2 Qxh2 24. Bxd7 Nxd7) 22. Rff3 $15 {[%emt 0:07:23]} Bd7 {[%emt 0:04:17]} 23. Bxd7 {[%emt 0:01:43]} Nxd7 {[%emt 0:00:11]} 24. Bd4 {[%emt 0:04:03]} b5 $36 {[%emt 0:02:44][%mdl 2048] Black fights for an advantage.} 25. Rfc3 {[%emt 0:12:59]} Rfc8 {[%emt 0:03:33]} 26. Rc7 {[%emt 0:08:27]} e5 {[%emt 0:11:39]} 27. fxe5 {[%emt 0:01:43][%cal Oe5e6] Threatens to win with e6!} Rxc7 {[%emt 0:01:02]} 28. dxc7 {[%emt 0:00:05][%cal Oe5e6]} Rc8 {[%emt 0:01:56]} 29. Rc3 {[%emt 0:00:29][%cal Oa2a4]} Qe6 {[%emt 0:00:32]} 30. Qxh5 {[%emt 0:05:09]} (30. a3 $1 $11) 30... b4 $17 {[%emt 0:00:46]} 31. Rf3 {[%emt 0:07:05]} Rxc7 {[%emt 0:00:38]} 32. Kd1 {[%emt 0:02:52]} Nf8 {[%emt 0:02:33] aiming for ...Qc6.} 33. Rf4 {[%emt 0:04:44] [#]} (33. Rf2 $142) 33... Qc6 $1 $19 {[%emt 0:03:20]} 34. Qf5 {[%emt 0:00:25]} Qe6 $2 {[%emt 0:02:13]} (34... Ne6 $19 35. Rh4 g6) 35. Qxe6 $11 {[%emt 0:01:17]} Nxe6 {[%emt 0:00:12][%mdl 4096] Endgame. KRB-KRN} 36. Bb6 $1 {[%emt 0:00:05][%csl LRb4,LRc7]} Rc3 {[%emt 0:01:13]} ({Much worse is} 36... Rc4 $6 37. Rxc4 dxc4 38. Kd2 $16 (38. Ba5 b3 $14)) 37. Rxb4 {[%emt 0:00:06]} Ra3 {[%emt 0:00:13] Repels Ra4} 38. Rb2 {[%emt 0:01:19]} Ng5 {[%emt 0:00:16]} (38... Kh7 $11 {keeps the balance.}) 39. Bc5 $16 {[%emt 0:00:50]} Rc3 {[%emt 0:00:16]} 40. Rb8+ {[%emt 0:02:25]} Kh7 {[%emt 0:00:09]} 41. Bd6 {[%emt 0:05:20]} Ne4 {[%emt 0:02:41]} 42. Rb6 {[%emt 0:11:02]} d4 {[%emt 0:02:44]} (42... Rf3 $1 $14) 43. Rb4 $18 {[%emt 0:05:28]} (43. Rxa6 Nf2+ 44. Kd2 Ne4+ 45. Ke2 Re3+ 46. Kd1 Nc3+ 47. Kd2 (47. Kc1 Re1+ 48. Kb2 Rb1+ 49. Ka3 Nb5+ 50. Ka4 Nc3+ 51. Ka3 d3 $11) 47... Ne4+ 48. Kc1 Nc3 $14) 43... Rf3 {[%emt 0:02:52]} (43... f5 $142 44. Rxd4 Kg8) 44. Rxd4 {[%emt 0:01:03]} Nc3+ {[%emt 0:00:12]} 45. Kd2 {[%emt 0:00:53]} Nxa2 $2 {[%emt 0:00:14]} (45... Kg6 46. Rc4 Nb1+ 47. Ke2 Rf5) 46. Rf4 {[%emt 0:01:59] White used his chance.   Weighted Error Value: White=0.17 (very precise) /Black=0.33.  Missed win:     	---       	Black=1      Mistake:       	White=3     	Black=5      Inaccurate:     	White=4     	Black=3      OK:         	White=15    	Black=11     Best:        	White=3     	Black=4      Strong:       	White=1     	---} 1-0

[Event "Israel Team Championship 2025"]
[Site "Israel"]
[Date "2025.01.17"]
[Round "3.29"]
[White "Efroimski, Marsel"]
[Black "Raznikov, Danny"]
[Result "1-0"]
[Annotator "TA"]
[ECO "C45"]
[WhiteElo "2389"]
[BlackElo "2466"]
[PlyCount "57"]
[EventDate "2025.01.07"]
[EventType "team-tourn"]
[EventCountry "ISR"]
[SourceTitle "playchess.com"]
[Source "ChessBase"]
[SourceQuality "1"]
[TimeControl "40/5400+30:1800+30"]

{[%evp 11,57,6,18,13,1,-10,-14,-17,17,6,22,17,122,115,125,127,198,184,260,248,438,270,290,269,282,289,324,324,328,345,419,412,673,620,658,652,614,581,633,593,699,708,1010,1022,1841,1843,1513,1463]} 1. e4 {[%emt 0:00:02]} e5 {[%emt 0:03:54]} 2. Nf3 {[%emt 0:00:05]} Nc6 {[%emt 0:00:09]} 3. d4 {[%emt 0:00:58]} exd4 {[%emt 0:00:21]} 4. Nxd4 {[%emt 0:00:05]} Bc5 {[%emt 0:01:05]} 5. Nb3 {[%emt 0:00:04]} Bb6 {[%emt 0:00:21]} 6. Nc3 {[%emt 0:00:07]} Nf6 {[%emt 0:01:35]} 7. Qe2 {[%emt 0:00:08]} O-O {[%emt 0:02:12]} 8. Bg5 {[%emt 0:00:05][%cal Bc1g5,Bg5h4,Bh4g3][%mdl 32]} h6 {[%emt 0:03:01]} 9. Bh4 {[%emt 0:00:12]} Nd4 {[%emt 0:03:40]} 10. Qd3 {[%emt 0:00:37]} Nxb3 {[%emt 0:00:47]} 11. axb3 {[%emt 0:00:04] 0-0-0 is in the air} g5 {[%emt 0:21:58]} (11... c6 $11) 12. Bg3 $16 {[%emt 0:00:19]} d6 {[%emt 0:00:06]} 13. Be2 {[%emt 0:04:21]} Ng4 {[%emt 0:06:17] [#]} (13... Be6 $16) 14. h4 $1 $18 {[%emt 0:05:11][%cal Bh2h4,Bh4g5,Bg5h6][%mdl 32]} Ne5 {[%emt 0:08:36]} (14... c6 $142 15. hxg5 (15. Qxd6 Bxf2+ 16. Kf1 Qxd6 $11) 15... Qxg5 16. Bxg4 (16. Bxd6 Nxf2 17. Qf3 Nxh1 $19) (16. Qxd6 Rd8 $17) 16... Bxg4 17. Qxd6 Bc5 18. Qxh6 Qxh6 19. Rxh6 Bd4) 15. Qd2 {[%emt 0:04:06]} Kg7 $2 {[%emt 0:11:08]} (15... Ng6 16. hxg5 Qxg5 17. Rxh6 Qxd2+ 18. Kxd2 Kg7) 16. Nd5 {[%emt 0:07:33]} Be6 {[%emt 0:13:14]} 17. hxg5 {[%emt 0:02:23]} Bxd5 {[%emt 0:01:08]} 18. gxh6+ {[%emt 0:00:29]} ({Resist} 18. exd5 $6 hxg5 19. Rh5 f6 $16) 18... Kh7 {[%emt 0:00:53]} 19. exd5 {[%emt 0:02:29]} Qf6 {[%emt 0:03:28]} 20. Bh4 {[%emt 0:05:36]} Qf5 {[%emt 0:01:25]} 21. O-O-O {[%emt 0:03:25]} Rg8 {[%emt 0:03:41]} (21... Qe4 $142 22. Rde1 Rg8) 22. f4 {[%emt 0:07:00]} Ng6 {[%emt 0:01:44]} 23. Bd3 {[%emt 0:01:00]} Qg4 {[%emt 0:00:25]} 24. Bf6 {[%emt 0:02:55]} Rae8 {[%emt 0:02:41]} 25. Rde1 {[%emt 0:01:06] Inhibits Be3.} Qg3 {[%emt 0:01:17]} 26. Kb1 {[%emt 0:04:59] and Rxe8 should not be overlooked} Be3 {[%emt 0:01:31]} 27. Qc3 {[%emt 0:01:16]} Bxf4 {[%emt 0:01:22]} 28. Rxe8 {[%emt 0:00:37]} Rxe8 {[%emt 0:00:07]} 29. Bh4 {[%emt 0:00:52]} 1-0

[Event "Israel Team Championship 2025"]
[Site "Israel"]
[Date "2025.01.17"]
[Round "3.30"]
[White "Mindlin, Alon"]
[Black "Vagman, Roy"]
[Result "1-0"]
[Annotator "TA"]
[ECO "D40"]
[WhiteElo "2443"]
[BlackElo "2254"]
[PlyCount "131"]
[EventDate "2025.01.07"]
[EventType "team-tourn"]
[EventCountry "ISR"]
[SourceTitle "playchess.com"]
[Source "ChessBase"]
[SourceQuality "1"]
[TimeControl "40/5400+30:1800+30"]

{[%evp 15,131,22,16,9,15,-6,-9,-35,6,0,0,0,17,0,0,-43,7,4,0,0,52,69,69,77,72,63,61,64,63,67,283,281,258,279,271,221,293,247,244,227,465,295,547,271,372,357,898,878,777,789,980,991,1945,1752,1430,531,529,293,504,475,939,935,900,752,745,915,766,680,1300,983,1266,1250,1527,1415,1582,1509,1559,1466,2468,2965,3300,3176,29983,29984,29983,1012,956,942,863,863,561,496,582,564,1291,1172,992,1008,6179,3596,29956,5324,9325,11854,5793,5793,1168,9983,29978,29979,11659,10392,8296,6095,29982,29983,29987,0]} 1. d4 {[%emt 0:04:41]} Nf6 {[%emt 0:00:06]} 2. c4 {[%emt 0:00:15]} e6 {[%emt 0:00:07]} 3. Nf3 {[%emt 0:00:24]} d5 {[%emt 0:00:14]} 4. e3 {[%emt 0:00:06]} c5 {[%emt 0:05:39]} 5. Nc3 {[%emt 0:00:10]} Nc6 {[%emt 0:00:29]} 6. a3 {[%emt 0:00:06]} dxc4 {[%emt 0:01:08]} 7. Bxc4 {[%emt 0:00:16]} a6 {[%emt 0:00:15]} 8. O-O {[%emt 0:03:27]} b5 {[%emt 0:03:06]} 9. Bd3 {[%emt 0:02:47]} Bb7 {[%emt 0:02:05]} 10. Qe2 {[%emt 0:05:16]} cxd4 {[%emt 0:13:23]} 11. exd4 {[%emt 0:00:13]} Be7 {[%emt 0:08:20]} 12. Rd1 {[%emt 0:05:32]} Na5 {[%emt 0:01:51]} 13. Bg5 {[%emt 0:21:35]} Nd5 {[%emt 0:08:38]} 14. Ne4 {[%emt 0:19:53]} O-O {[%emt 0:05:49]} 15. Be3 {[%emt 0:04:33]} Rc8 {[%emt 0:04:04]} ({Black should try} 15... Nb3 $15 16. Rab1 Rc8) 16. Nc5 $11 {[%emt 0:04:53]} Bxc5 {[%emt 0:07:36]} 17. dxc5 {[%emt 0:00:08]} Qc7 {[%emt 0:00:54]} (17... Qe7 $1 $11) 18. Rac1 $14 {[%emt 0:11:58]} Rfd8 {[%emt 0:10:14]} 19. b4 {[%emt 0:04:13]} Nc6 {[%emt 0:01:21]} 20. Ng5 $36 {[%emt 0:01:03][%mdl 2048] White is more active.} Nf6 {[%emt 0:02:06]} 21. Ne4 {[%emt 0:00:40]} Nxe4 $1 {[%emt 0:02:07]} 22. Bxe4 {[%emt 0:00:01]} Ne7 $2 {[%emt 0:06:19] [#]} (22... Qe5 $14 23. Bf3 Qc7) 23. Bf4 $1 $18 {[%emt 0:02:31][%mdl 512]} Qxf4 {[%emt 0:02:38]} 24. Bxb7 {[%emt 0:00:05]} Rb8 {[%emt 0:00:16]} 25. Bxa6 {[%emt 0:03:49]} Rxd1+ {[%emt 0:02:15]} 26. Qxd1 {[%emt 0:00:01]} Nc6 {[%emt 0:01:40]} 27. g3 {[%emt 0:00:18]} Qh6 $2 {[%emt 0:01:43]} (27... Qe4 28. Qd6 h5) 28. Rc3 {[%emt 0:00:36]} Qh3 $2 {[%emt 0:02:57]} (28... Qf6 29. Rf3 Rd8) 29. Qf1 {[%emt 0:01:46]} (29. Bxb5 $142 Rxb5 30. Qd7) 29... Qf5 {[%emt 0:00:50] Prevents Rd3.} 30. Qd3 {[%emt 0:02:08]} Qh3 $2 {[%emt 0:00:48]} (30... Qf6 31. Rc1 (31. Bxb5 Nd4 $18) 31... h5) 31. Bxb5 {[%emt 0:00:20]} Rd8 {[%emt 0:03:22]} 32. Qf1 {[%emt 0:00:04]} Qg4 {[%emt 0:00:32]} 33. Bxc6 {[%emt 0:00:24]} Rd1 {[%emt 0:00:05] [#]} 34. Bb5 $1 {[%emt 0:00:37]} Qd4 {[%emt 0:01:37]} (34... h5 35. c6) 35. Rd3 {[%emt 0:00:54]} Rxf1+ {[%emt 0:00:02]} 36. Kxf1 {[%emt 0:00:03][%mdl 4096] Endgame KQ-KRB} Qa1+ {[%emt 0:00:06]} 37. Kg2 {[%emt 0:00:04][%cal Rd3d8]} h5 {[%emt 0:00:03]} (37... g5 $142 38. Re3 Qd1) 38. c6 {[%emt 0:01:15][%cal Bc5c6,Bc6c7][%mdl 32]} Qe5 {[%emt 0:00:25]} 39. Rd8+ {[%emt 0:00:15]} Kh7 {[%emt 0:00:01]} 40. Bd3+ {[%emt 0:00:05]} f5 {[%emt 0:00:13]} 41. Rd7 {[%emt 0:11:21]} h4 {[%emt 0:02:00]} 42. b5 {[%emt 0:03:08]} Qc5 {[%emt 0:01:46]} 43. c7 {[%emt 0:02:21]} Kh6 {[%emt 0:00:35]} 44. gxh4 {[%emt 0:00:56]} g5 {[%emt 0:03:09]} 45. hxg5+ {[%emt 0:02:40]} Kxg5 {[%emt 0:00:02]} 46. a4 {[%emt 0:00:53]} e5 {[%emt 0:00:52][%cal Be6e5,Be5e4,Be4d3][%mdl 32]} 47. a5 {[%emt 0:01:40]} e4 {[%emt 0:00:59]} 48. a6 {[%emt 0:01:38][%cal Oa6a7]} exd3 {[%emt 0:19:54] KQ-KR} 49. a7 {[%emt 0:00:05]} Qc4 {[%emt 0:00:43]} 50. Rg7+ {[%emt 0:03:23]} (50. a8=B Qg4+ 51. Kh1 Qd1+ 52. Kg2 Qg4+ 53. Kh1 Qd1+ 54. Kg2 Qg4+ $11) (50. h4+ $142 Qxh4 51. Rg7+ (51. c8=R Qg4+ 52. Kh2 Qf4+ 53. Kg2 Qg4+ 54. Kh2 Qh4+ 55. Kg1 Qg4+ 56. Kh2 $11) (51. Rxd3 Qe4+ 52. Kh2 Qxd3 $18) 51... Kf6 52. c8=Q (52. c8=R Kxg7 $11) 52... Kxg7 53. Qc7+ (53. a8=B Qg4+ 54. Kh1 Qd1+ 55. Kh2 Qh5+ 56. Kg2 Qg4+ 57. Kh2 Qh5+ 58. Kg2 Qg4+ $11) (53. Qxf5 Qd8 $18) 53... Kh6 54. a8=Q (54. a8=B Qg4+ 55. Qg3 d2 $18) 54... Qg4+ 55. Qg3) 50... Kf6 {[%emt 0:10:06]} 51. a8=Q {[%emt 0:00:07]} (51. a8=B $2 Kxg7 52. Bf3 Qxc7 $19 (52... Qxb5 $2 {too greedy.} 53. c8=Q $18)) 51... Kxg7 {[%emt 0:00:00] KQ-KQ. White is two pawns up.} 52. Qa1+ {[%emt 0:00:59]} (52. c8=B Qg4+ 53. Kf1 d2 54. Qa7+ Kg6 55. Bxf5+ Qxf5 56. Qb6+ Kh5 $19) 52... Kg6 {[%emt 0:00:00]} 53. Qd1 {[%emt 0:00:31] b6 is the strong threat.} ({Weaker is} 53. Qa6+ Kh5 54. Qd6 (54. c8=R Qg4+ 55. Kf1 Qd1+ 56. Kg2 Qg4+ 57. Kh1 Qd1+ 58. Kg2 Qg4+ $11) 54... Qe4+ 55. f3 Qe2+ 56. Kg3 f4+ 57. Kxf4 (57. Qxf4 Qe1+ 58. Kg2 Qe2+ 59. Kg3 Qe1+ 60. Kg2 Qe2+ 61. Kg3 $11) 57... Qxh2+ 58. Ke3 Qxd6 $11) 53... d2 {[%emt 0:00:00]} 54. Qxd2 {[%emt 0:01:00]} Qg4+ {[%emt 0:00:00]} 55. Kf1 {[%emt 0:00:08]} Qc4+ {[%emt 0:00:00]} 56. Qe2 {[%emt 0:01:10]} Qc1+ {[%emt 0:00:00]} 57. Kg2 {[%emt 0:00:43]} Qg5+ {[%emt 0:00:00]} 58. Kf3 {[%emt 0:00:31]} Qg4+ {[%emt 0:00:00]} 59. Ke3 {[%emt 0:00:04]} Qe4+ {[%emt 0:00:00]} 60. Kd2 {[%emt 0:00:04] Threatening mate with Qxe4.} Qb4+ {[%emt 0:00:00]} 61. Kc2 {[%emt 0:00:11]} Qa4+ {[%emt 0:00:24]} 62. Kc3 {[%emt 0:00:23]} Qa5+ {[%emt 0:01:39]} 63. Kb3 {[%emt 0:00:04]} Qxc7 {[%emt 0:00:05]} 64. Qe6+ {[%emt 0:00:06]} Kg5 {[%emt 0:00:18] [#]} 65. h4+ $1 {[%emt 0:00:38]} Kxh4 {[%emt 0:00:30]} (65... Kh5 66. Qxf5+) 66. Qxf5 $2 {[%emt 0:11:21]} (66. Qc4+ {mates} Qxc4+ 67. Kxc4 Kh3 68. b6 Kg2 69. b7 Kxf2 70. b8=Q (70. b8=B Ke3 $11) 70... Kf3 71. Kd4) 1-0